Cogmind - Beta 11.1 @@@ ROGUE MODE // 2022.06.16 @ 13:57:58 Player: IceNine Result: Destroyed by G-34 Mercenary with Small Laser Performance ------------- Evolutions (1) 500 Regions Visited (2) 400 Robots Destroyed (24) 120 Value Destroyed (463) 463 Prototype IDs (1) 20 Alien Tech Used (0) 0 Bonus (41) 41 TOTAL SCORE: 1544 Bonus ------- High Alert Combat Kills 41 Cogmind --------- Core Integrity 0/400 Matter 178/300 Energy 59/100 System Corruption 0% Temperature Warm (106) Movement Core (100) Ox1 Location -9/Materials Parts ------- > --- POWER (1) -------- (None) > --- PROPULSION (4) --- (None) > --- UTILITY (2) ------ Small Storage Unit > --- WEAPON (2) ------- (None) > --- INVENTORY (8) ---- Ion Engine Weight Redist. System Improved Terrain Scanner Assault Rifle Peak State ------------ > --- POWER ------------ Light Ion Engine > --- PROPULSION ------- Hover Unit Hover Unit Hover Unit Hover Unit > --- UTILITY ---------- Small Storage Unit Improved Terrain Scanner > --- WEAPON ----------- Particle Cannon Improved Assault Rifle > --- INVENTORY -------- Ion Engine Hover Unit Weight Redist. System Shield Generator EM Pulse Gun Assault Rifle Light Assault Rifle Grenade Launcher [Rating: 15] Favorites ----------- Power Light Ion Engine Engine Light Ion Engine Propulsion Hover Unit Wheel Wheel Hover Unit Hover Unit Utility Small Storage Unit Device Improved Terrain Scanner Storage Small Storage Unit Weapon Grenade Launcher Energy Gun EM Pulse Gun Energy Cannon Particle Cannon Ballistic Gun Improved Assault Rifle Launcher Grenade Launcher Build | -11 -10 -9 ------- Run | Scr Mat Mat Slots Evolved 2 | . . 2 Power . | . . . Propulsion 2 | . . 2 Utility . | . . . Weapon . | . . . Parts Attached 25 | 7 1 17 Power 1 | 1 . . Engine 1 | 1 . . Core . | . . . Reactor . | . . . Propulsion 7 | 2 . 5 Treads . | . . . Leg . | . . . Wheel 2 | 2 . . Hover 5 | . . 5 Flight . | . . . Utility 3 | 2 . 1 Device 2 | 1 . 1 Storage 1 | 1 . . Processor . | . . . Hackware . | . . . Protection . | . . . Artifact . | . . . Weapon 14 | 2 1 11 Energy Gun 3 | 1 . 2 Energy Cannon 2 | . . 2 Ballistic Gun 4 | 1 . 3 Ballistic Cannon . | . . . Launcher 5 | . 1 4 Special Weapon . | . . . Impact Weapon . | . . . Slashing Weapon . | . . . Piercing Weapon . | . . . Special Melee Weapon . | . . . Unidentified Prototypes 1 | . . 1 Parts Lost 12 | . . 12 Power 1 | . . 1 Propulsion 5 | . . 5 Utility 1 | . . 1 Weapon 5 | . . 5 Highest Loss Streak 10 | . . 10 To Critical Strikes 1 | . . 1 Average Slot Usage (%) 87 | . 100 83 Engine 10 | . 14 9 Wheel 7 | . 28 . Hover 25 | . . 33 Device 10 | . 14 9 Storage 11 | . 14 11 Energy Gun 6 | . 14 3 Energy Cannon 3 | . . 5 Ballistic Gun 3 | . 1 4 Launcher 7 | . 12 6 Naked Turns . | . . . Heaviest Build 16 | 13 14 16 Greatest Support 24 | 20 20 24 Greatest Overweight (x) 2 | . . 2 Average Overweight (x) . | . . . Largest Inventory Capacity 8 | 8 8 8 Average Capacity 7 | 7 8 8 Most Carried 8 | 7 8 8 Average Carried 6 | 4 7 6 Final Capacity 8 | 8 8 8 Final Carried 8 | 7 8 4 Class Distribution -------------------- 100% | Mutant Dominant Class ---------------- Mutant | -10/Materials Mutant | -9/Materials Resources | -11 -10 -9 ----------- Run | Scr Mat Mat Matter Collected 533 | 245 25 263 Remotely . | . . . Salvage Created 591 | 90 60 441 Parts 52 | 5 9 38 Haulers Intercepted 1 | . . 1 Recyclers Shooed . | . . . Parts Field Recycled . | . . . Retrieved Matter . | . . . Parts Self-Destructed . | . . . Prevented . | . . . Kills | -11 -10 -9 ------- Run | Scr Mat Mat Combat Hostiles Destroyed 14 | . 3 11 Guns 3 | . . 3 Cannons 1 | . . 1 AOE 10 | . 3 7 Classes Destroyed 9 | 2 4 3 Worker 1 | . 1 . Builder 1 | . 1 . Tunneler 1 | 1 . . Hauler 1 | . . 1 Recycler 3 | 1 . 2 Watcher 3 | . 1 2 Swarmer 7 | . 3 4 Grunt 6 | . . 6 Sentry 1 | . . 1 Best Kill Streak 5 | 2 5 4 Combat Bots Only 3 | . 3 3 Max Kills in Single Turn 2 | 1 2 2 Gunslinging . | . . . Exploded 2 | . 2 2 Melee . | . . . Uniques/NPCs Destroyed . | . . . Combat | -11 -10 -9 -------- Run | Scr Mat Mat Damage Taken 1132 | . 37 1095 Core 422 | . 19 403 Absorbed by Shields 36 | . . 36 Core Remaining (%) 96 | 100 92 . Volleys Fired 49 | 7 6 36 Largest 2 | 2 2 2 Hottest 91 | 60 70 91 Shots Fired 85 | 14 8 63 Gun 43 | 14 6 23 Cannon 23 | . . 23 Launcher 19 | . 2 17 Special . | . . . Kinetic 25 | 7 . 18 Thermal 23 | . . 23 Explosive 19 | . 2 17 Electromagnetic 18 | 7 6 5 Robot Hit Streak 9 | 4 2 9 Robot Miss Streak 2 | 2 1 2 Penetration Max . | . . . Secondary Targets . | . . . Shots Hit Robots 48 | 8 4 36 Core Hits 34 | 2 6 26 Critical Kills . | . . . Critical Parts Destroyed . | . . . Critical Strikes . | . . . Melee Attacks . | . . . Impact . | . . . Slashing . | . . . Piercing . | . . . Sneak Attacks . | . . . Combat Hostiles . | . . . Follow-up Attacks . | . . . Damage Inflicted 1951 | 135 481 1335 Guns 344 | 94 46 204 Cannons 285 | . . 285 Explosions 1322 | 41 435 846 Melee . | . . . Ramming . | . . . Kinetic 171 | 25 . 146 Thermal 405 | 41 23 341 Explosive 1202 | . 412 790 Electromagnetic 173 | 69 46 58 Impact . | . . . Slashing . | . . . Piercing . | . . . Highest Corruption . | . . . Average Corruption . | . . . Corruption Purged . | . . . Corruption Blocked . | . . . Overload Shots . | . . . Overflow Damage 48 | 3 . 45 Projectiles 1 | . . 1 Explosions 47 | 3 . 44 Melee . | . . . Knockbacks . | . . . Impact . | . . . Kinetic . | . . . Secondary . | . . . Self-Inflicted Damage 39 | . . 39 Shots 1 | . . 1 Rammed . | . . . Targets Rammed . | . . . Kicked . | . . . Crushed . | . . . Highest Temperature 254 | . 18 254 Average Temperature 58 | . 10 60 Received Heat Transfer 327 | . . 327 Siege Activations . | . . . Robots Corrupted . | . . . Combat Hostiles . | . . . Parts Fried 1 | . 1 . Impact Corruptions . | . . . Robots Melted . | . . . Combat Hostiles . | . . . Parts Melted 1 | . . 1 Heat Transferred 668 | . 50 618 Parts Sabotaged . | . . . Parts Stolen . | . . . Parts Stripped . | . . . Power Chain Reactions 3 | 1 1 1 Missiles Intercepted . | . . . Alert | -11 -10 -9 ------- Run | Scr Mat Mat Peak Influence 701 | 10 340 701 Initial 143 | . 6 143 Average 333 | 3 226 438 Maximum Alert Level 3 | . 1 3 Low Security (%) 28 | 100 30 13 Level 1 28 | . 69 20 Level 2 41 | . . 64 Level 3 . | . . 1 Level 4 . | . . . Level 5 . | . . . High Security . | . . . Max Security . | . . . Squads Dispatched 3 | . . 3 Investigation 1 | . . 1 Extermination . | . . . Reinforcement 2 | . . 2 Assault . | . . . Garrison . | . . . Intercept . | . . . Searches Triggered . | . . . Construction Impeded 1 | . . 1 Haulers Reinforced . | . . . Active Scanning Responses . | . . . Cargo Convoy Interrupts . | . . . Stealth | -11 -10 -9 --------- Run | Scr Mat Mat Distress Signals 1 | . . 1 Communications Jammed . | . . . Distress Signals . | . . . Times Spotted 32 | . 4 28 Peak Tracking Total 11 | . 3 11 Tactical Retreats 3 | . . 3 Traps | -11 -10 -9 ------- Run | Scr Mat Mat Traps Triggered 1 | . . 1 Indirectly . | . . . Trap Hack Attempts . | . . . Triggered . | . . . Disarmed . | . . . Reprogrammed . | . . . Reused . | . . . Traps Extracted . | . . . Installed . | . . . Triggered . | . . . Machines | -11 -10 -9 ---------- Run | Scr Mat Mat Machines Disabled 5 | . 4 1 Max in Single Turn 2 | . 2 1 Machines Sabotaged . | . . . Garrisons Compromised . | . . . Overloaded Fab Kills . | . . . Hacking | -11 -10 -9 --------- Run | Scr Mat Mat Machines Accessed 2 | . 2 . Terminals 2 | . 2 . Fabricators . | . . . Repair Stations . | . . . Recycling Units . | . . . Scanalyzers . | . . . Garrison Access . | . . . Total Hacks 5 | . 5 . Successful 2 | . 2 . Failed 3 | . 3 . Catastrophic 1 | . 1 . Database Lockouts . | . . . Manual 5 | . 5 . Terminals 5 | . 5 . Fabricators . | . . . Repair Stations . | . . . Recycling Units . | . . . Scanalyzers . | . . . Garrison Access . | . . . Terminal Hacks . | . . . Fabricator Hacks . | . . . Repair Station Hacks . | . . . Recycling Unit Hacks . | . . . Scanalyzer . | . . . Garrison Access Hacks . | . . . Unauthorized Hacks 2 | . 2 . Terminals 2 | . 2 . Botnet 2 | . 2 . Fabricators . | . . . Repair Stations . | . . . Recycling Units . | . . . Scanalyzers . | . . . Garrison Access . | . . . Data Cores Recovered . | . . . Used . | . . . Hacking Detections 1 | . 1 . Full Trace Events 1 | . 1 . Feedback Events . | . . . Feedback Blocked . | . . . Robot Schematics Acquired . | . . . Robots Built . | . . . Authchips . | . . . Time . | . . . Total Robot Build Rating . | . . . Part Schematics Acquired . | . . . Parts Built . | . . . Authchips . | . . . Time . | . . . Total Part Build Rating . | . . . Parts Repaired . | . . . Time . | . . . Parts Recycled . | . . . Recycled Matter . | . . . Retrieved Matter . | . . . Retrieved Components . | . . . Parts Scanalyzed . | . . . Part Schematics Acquired . | . . . Parts Damaged . | . . . Bothacking | -11 -10 -9 ------------ Run | Scr Mat Mat Used RIF Installer . | . . . Robots Hacked . | . . . Non-combat . | . . . Combat . | . . . Robot Hacks Applied . | . . . Relay Couplers Released . | . . . Fabnet Peak Effective % . | . . . Robots Rewired . | . . . Allies Hacked . | . . . Hacks Repelled . | . . . Allies | -11 -10 -9 -------- Run | Scr Mat Mat Total Allies . | . . . Largest Group . | . . . Highest-Rated Group . | . . . Highest-Rated Ally . | . . . Total Orders . | . . . Ally Attacks . | . . . Total Damage . | . . . Kills . | . . . Allies Corrupted . | . . . Allies Melted . | . . . Intel | -11 -10 -9 ------- Run | Scr Mat Mat Robot Analysis Total . | . . . Derelict Logs Recovered . | . . . Drone Launches . | . . . Drone Recoveries . | . . . Exploration | -11 -10 -9 ------------- Run | Scr Mat Mat Turns Passed 573 | 75 130 368 Spaces Moved 496 | 47 126 323 Core 15 | 2 . 13 Treads . | . . . Legs . | . . . Wheels 171 | 45 126 . Hover 310 | . . 310 Flight . | . . . Fastest Speed 48 | 50 80 48 Average Speed 63 | 78 80 54 Slowest Speed 150 | 80 80 150 Overloaded Moves . | . . . Propulsion Burnouts . | . . . Robots Hopped . | . . . Cave-ins Triggered . | . . . Exploration Rate (%) 20 | 3 35 23 Regions Visited 2 Branch Regions . Pre-discovered Areas . | . . . Known Exits Taken . | . . . Unknown Exits Taken 2 | 1 1 . Scrap Searched . | . . . Spaces Dug . | . . . Terrain Destroyed 122 | 2 76 44 Melee . | . . . Projectile . | . . . AOE 122 | 2 76 44 Terrain Rammed . | . . . Walls Destroyed . | . . . Machines Disabled . | . . . Actions | -11 -10 -9 --------- Run | Scr Mat Mat Total 666 | 67 148 451 Wait 67 | . 5 62 Move 494 | 46 125 323 Hop . | . . . Pick Up 19 | 7 6 6 Fast Attach 9 | 7 . 2 Attach 8 | . . 8 Detach 1 | . . 1 Swap 8 | . 1 7 Drop 11 | . 5 6 Fire 49 | 7 6 36 Melee . | . . . Ram . | . . . Kick . | . . . Crush . | . . . Escape Stasis . | . . . Rewire . | . . . Trap . | . . . Miscellaneous . | . . . Route ------- -11/Scrapyard -10/Materials -9/Materials History --------- Turn | Location | Event 6 | -11/Scrapyard | Discovered new exit (range 15) 76 | -11/Scrapyard | Entered Materials 190 | -10/Materials | Discovered new exit (range 6) 206 | -10/Materials | Entered another Materials area 206 | -9/Materials | Evolved 2 slots: Propulsion x2 324 | -9/Materials | Build established: Mutant 533 | -9/Materials | Core integrity fell below 50% 556 | -9/Materials | Lost 10 parts (1p5n1u3w) 567 | -9/Materials | Core integrity fell below 20% 574 | -9/Materials | Destroyed by G-34 Mercenary with Small Laser Last Messages --------------- 00482_ Hover Unit destroyed. 00484_ Grenade Launcher destroyed. 00484_ Destroyed Lgt. Ion Engine. 00484_ S-10 Pest destroyed. 00484_ Destroyed Flight Unit. 00485_ Grenade Launcher destroyed. 00485_ Hover Unit destroyed. 00495_ Critical hit (Destroy). 00495_ Hover Unit destroyed. 00511_ S-10 Pest destroyed. 00512_ Hover Unit destroyed. 00518_ Lgt. Ion Engine destroyed. 00519_ Hvy. EM Pulse Gun destroyed. 00525_ Shield Generator destroyed. 00530_ S-10 Pest destroyed. 00560_ Sml. Laser melted. 00560_ G-34 Mercenary destroyed. 00564_ Imp. Assault Rifle destroyed. 00566_ Destroyed Flight Unit. 00571_ Particle Cannon destroyed. Map ----- +----------------------------------------------------+ | ????????????#? # # #??? | | ???????????#? # #+########??? | | ????????????# # #???????#?? | | ?????????????? # #???#?????? | | ????????????? ?# #?????????? | | ????????????? = ! ?# #?????????? | | ?????????????? ??# #?????????? | | ??????????????######## #??#??????? | | ????????####### ##????????? | | ????????+ ##????????? | | ????????# ##??#?????? | | ????????# #### #########?? | | ????????????????# # % #??# | | ????????????????# + #?#? | | ????????????????# #####/##o# #??? | | ????????????????# ?# # #%% #??? | | ???????????????## ?# /a/* #??? | | ??????????????##???# # # ==#??? | | ????????????????#??# #s#####/##??? | | ????????????"??????####### gg#???? | | ?????????????? ????# #???? | | ???????????? ?? ??# #???? | | ????????????? ? ?# [t #???? | | ?????????????#+## ## #???# | | ?????????????# ## #???? | | ?????????????# ## @ ##??? | | ? ???????????# ## #??? | | ???????????### ###? | | ?????????????## #?#? | | ?? ???????????# """ #??? | | ??????????#?### """"" #??? | | ?? ??????#### # """"" #??# | | #+######## # """"" #??? | | # """ #??? | | #?#= # #??? | | #?## # # #??? | | ##+###+#### # #*[ *%! #??? | | "/% ! =%[ =*! ! #??? | | "" """ #### # = * [ #??# | | "" """ ## # [= #??? | | "" """ ## # #??? | | ## # #??? | | ## # [ [[ #??? | | ## ### [[[ #??? | | ] ######?# [[ #??? | | ########??????# #?#? | | ??????????????# #??? | | ??????????#???#####################??? | | ?#????##?????????#?????#???????#?????? | | ?????????????#????????#??????????????? | +----------------------------------------------------+ Best States ------------- Heat Dissipation 28 Energy Generation 10 Energy Capacity 125 Matter Stores 300 Matter Capacity 300 Sight Range 16 Terrain Scan Range 16 Terrain Scan Density 10 Evasion (%) 55 Item Schematics ----------------- None Robot Schematics ------------------ None Fabricated ------------ Nothing Alien Tech Used ----------------- None Achievements -------------- None Challenges ------------ None Game ------ Seed ArchitectPhysicsEngine Manual? 0 Play Time 00:18:07 Cumulative 16.2 hours Start 2022.06.16 @ 13:43:29 End 2022.06.16 @ 13:57:58 Sessions 1 Manual Loads 0 Difficulty Rogue Special Mode None Game No. 19 Rogue 19 Adventurer 0 Explorer 0 Win Type - Total 0 Types 0/0/0/0/0/0/0/0/0 Lore% 18 Gallery% 21 Achievement% 18 Wizard Run 0 Options --------- ASCII 1 Keyboard 0 Movement Mouse Keybinds 0 Fullscreen 1 Font 24/Smallcaps Map View 76x50 Tactical HUD 1 Map Filters NONE Filters NONE Steam 1 RUN: f95e702c-1bd9-4254-ac09-0d1cd6d5fcb8